[Event "Prague Festival Futures 2024"]
[Site "Prague"]
[Date "2024.03.04"]
[Round "6.4"]
[White "Peglau, Paul David"]
[Black "Guntaka, Aayansh R"]
[Result "0-1"]
[ECO "E04"]
[WhiteElo "1764"]
[BlackElo "1651"]
[Annotator "NA RC"]
[PlyCount "100"]
[EventDate "2024.02.22"]
[EventType "tourn"]
[EventCountry "CZE"]
[SourceTitle "playchess.com"]
[Source "ChessBase"]
[SourceQuality "1"]
[TimeControl "40/5400+30:1800+30"]

1. d4 {[%emt 0:00:07]} d5 {[%emt 0:00:08]} 2. c4 {[%emt 0:00:30]} e6 {[%emt 0:00:10]} 3. Nf3 {[%emt 0:00:21]} c6 {[%emt 0:00:14]} 4. g3 {[%emt 0:00:28]} dxc4 {[%emt 0:00:14]} 5. Bg2 {[%emt 0:00:25]} Nf6 {[%emt 0:00:13]} 6. Ne5 {[%emt 0:03:50]} b5 {[%emt 0:02:37]} 7. Nxc6 {[%emt 0:01:46]} Qb6 {[%emt 0:00:07]} 8. Nxb8 {[%emt 0:02:21]} Rxb8 {[%emt 0:00:07]} 9. Bf4 {[%emt 0:01:26]} Bd6 {[%emt 0:00:12]} 10. Bxd6 {[%emt 0:07:47]} Qxd6 {[%emt 0:00:11]} 11. O-O {[%emt 0:01:28]} O-O {[%emt 0:00:24]} 12. e4 {[%emt 0:09:00]} Qd7 {[%emt 0:00:54]} 13. e5 {[%emt 0:09:10]} Nd5 {[%emt 0:00:29]} 14. Nc3 {[%emt 0:02:18]} Nb4 {[%emt 0:05:36]} 15. Ne4 {[%emt 0:22:24]} Nd3 {[%emt 0:00:49]} 16. Qg4 {[%emt 0:06:09]} Qd8 {[%emt 0:05:59]} 17. b3 {[%emt 0:06:40]} h6 {[%emt 0:09:13]} 18. bxc4 {[%emt 0:07:08]} bxc4 {[%emt 0:00:08]} 19. Nd6 {[%emt 0:01:14]} Ba6 {[%emt 0:00:59]} 20. f4 {[%emt 0:03:58]} c3 {[%emt 0:11:00]} 21. f5 {[%emt 0:04:03]} Qg5 {[%emt 0:03:35]} 22. Qxg5 {[%emt 0:01:29]} hxg5 {[%emt 0:00:16]} 23. fxe6 {[%emt 0:00:56]} fxe6 {[%emt 0:00:14]} 24. Rxf8+ {[%emt 0:04:23]} Kxf8 {[%emt 0:04:02]} 25. Rf1+ {[%emt 0:01:35]} Kg8 {[%emt 0:00:55]} 26. Bh3 {[%emt 0:01:26]} c2 {[%emt 0:00:40]} 27. Bxe6+ {[%emt 0:00:22]} Kh7 {[%emt 0:00:09]} 28. Bf5+ {[%emt 0:01:12]} g6 {[%emt 0:00:17]} 29. Bxg6+ {[%emt 0:00:32]} Kxg6 {[%emt 0:00:10]} 30. e6 {[%emt 0:00:30]} c1=Q {[%emt 0:01:10]} 31. Rxc1 {[%emt 0:00:22]} Nxc1 {[%emt 0:00:05]} 32. e7 {[%emt 0:00:03]} Bb5 {[%emt 0:00:10]} 33. Nxb5 {[%emt 0:00:24]} Re8 {[%emt 0:00:06]} 34. Nxa7 {[%emt 0:00:27]} Rxe7 {[%emt 0:00:10]} 35. Nc6 {[%emt 0:00:01]} Rc7 {[%emt 0:01:02]} 36. d5 {[%emt 0:00:41]} Nxa2 {[%emt 0:00:08]} 37. g4 {[%emt 0:01:30]} Kf6 {[%emt 0:01:02]} 38. Nd4 {[%emt 0:00:36]} Rd7 {[%emt 0:00:28]} 39. Kf2 {[%emt 0:00:04]} Rxd5 {[%emt 0:00:05]} 40. Ke3 {[%emt 0:00:33]} Nb4 {[%emt 0:01:53]} 41. Nf5 {[%emt 0:30:42]} Rd3+ {[%emt 0:30:11]} 42. Kf2 {[%emt 0:00:19]} Nd5 {[%emt 0:01:11]} 43. Ng3 {[%emt 0:00:48]} Rd2+ {[%emt 0:01:02]} 44. Kg1 {[%emt 0:00:07]} Ke5 {[%emt 0:00:05]} 45. Nf1 {[%emt 0:00:27]} Ra2 {[%emt 0:00:10]} 46. Ng3 {[%emt 0:00:34]} Kf4 {[%emt 0:00:08]} 47. Nf5 {[%emt 0:00:52]} Kxg4 {[%emt 0:00:24]} 48. Nh6+ {[%emt 0:00:07]} Kf3 {[%emt 0:00:15]} 49. h4 {[%emt 0:00:09]} gxh4 {[%emt 0:00:26]} 50. Nf5 {[%emt 0:00:10]} h3 {[%emt 0:00:54]} 0-1

[Event "Prague Festival Futures 2024"]
[Site "Prague"]
[Date "2024.03.04"]
[Round "6.5"]
[White "Jakubse, Tamae Severina"]
[Black "Markina, Sofiia"]
[Result "1-0"]
[ECO "B13"]
[WhiteElo "1735"]
[BlackElo "1680"]
[Annotator "NA RC"]
[PlyCount "113"]
[EventDate "2024.02.22"]
[EventType "tourn"]
[EventCountry "CZE"]
[SourceTitle "playchess.com"]
[Source "ChessBase"]
[SourceQuality "1"]
[TimeControl "40/5400+30:1800+30"]

1. e4 {[%emt 0:00:03]} c6 {[%emt 0:00:10]} 2. d4 {[%emt 0:00:06]} d5 {[%emt 0:00:05]} 3. exd5 {[%emt 0:00:06]} cxd5 {[%emt 0:00:06]} 4. c4 {[%emt 0:00:06]} Nf6 {[%emt 0:00:18]} 5. Nc3 {[%emt 0:00:06]} Nc6 {[%emt 0:00:17]} 6. Nf3 {[%emt 0:00:06]} Bg4 {[%emt 0:01:01]} 7. cxd5 {[%emt 0:00:09]} Nxd5 {[%emt 0:00:16]} 8. Qb3 {[%emt 0:00:10]} Bxf3 {[%emt 0:00:21]} 9. gxf3 {[%emt 0:00:05]} e6 {[%emt 0:00:15]} 10. Qxb7 {[%emt 0:00:10]} Nxd4 {[%emt 0:00:31]} 11. Bb5+ {[%emt 0:00:08]} Nxb5 {[%emt 0:00:09]} 12. Qc6+ {[%emt 0:00:10]} Ke7 {[%emt 0:00:11]} 13. Qc5+ {[%emt 0:00:06]} Ke8 {[%emt 0:14:09]} 14. Qxb5+ {[%emt 0:01:13]} Qd7 {[%emt 0:00:10]} 15. Qxd7+ {[%emt 0:01:45]} Kxd7 {[%emt 0:00:05]} 16. Nxd5 {[%emt 0:00:08]} exd5 {[%emt 0:00:04]} 17. O-O {[%emt 0:01:25]} Bb4 {[%emt 0:01:53]} 18. Be3 {[%emt 0:03:27]} a6 {[%emt 0:02:38]} 19. Rfd1 {[%emt 0:13:29]} Ke6 {[%emt 0:01:01]} 20. Bd4 {[%emt 0:02:39]} Rac8 {[%emt 0:04:26]} 21. a3 {[%emt 0:02:47]} Ba5 {[%emt 0:04:04]} 22. b4 {[%emt 0:02:32]} Bc7 {[%emt 0:01:22]} 23. Re1+ {[%emt 0:06:37]} Kd7 {[%emt 0:01:35]} 24. Rad1 {[%emt 0:01:58]} Rce8 {[%emt 0:04:17]} 25. Be3 {[%emt 0:02:44]} Re5 {[%emt 0:02:46]} 26. Re2 {[%emt 0:15:29]} Rhe8 {[%emt 0:04:23]} 27. Red2 {[%emt 0:03:24]} Kc6 {[%emt 0:00:46]} 28. Rc1+ {[%emt 0:03:02]} Kb7 {[%emt 0:00:13]} 29. Rc5 {[%emt 0:01:49]} Rd8 {[%emt 0:06:10]} 30. f4 {[%emt 0:19:52]} Rf5 {[%emt 0:00:49]} 31. b5 {[%emt 0:00:47]} a5 {[%emt 0:10:06]} 32. b6 {[%emt 0:04:15]} Bxf4 {[%emt 0:02:52]} 33. Bxf4 {[%emt 0:03:50]} Rxf4 {[%emt 0:00:06]} 34. Rb2 {[%emt 0:02:14]} d4 {[%emt 0:07:33]} 35. Rxa5 {[%emt 0:04:29]} d3 {[%emt 0:00:41]} 36. Ra7+ {[%emt 0:00:24]} Kb8 {[%emt 0:00:04]} 37. Rd2 {[%emt 0:00:22]} Rc4 {[%emt 0:05:41]} 38. Rxf7 {[%emt 0:02:20]} Rc2 {[%emt 0:00:15]} 39. Rd1 {[%emt 0:00:07]} Rc6 {[%emt 0:10:01]} 40. Rxg7 {[%emt 0:03:55]} h6 {[%emt 0:01:24]} 41. Rc7 {[%emt 0:06:09]} Rxc7 {[%emt 0:02:58]} 42. bxc7+ {[%emt 0:00:11]} Kxc7 {[%emt 0:00:04]} 43. f3 {[%emt 0:02:36]} Kc6 {[%emt 0:00:24]} 44. Kf2 {[%emt 0:00:25]} Kc5 {[%emt 0:00:15]} 45. Ke3 {[%emt 0:00:20]} Kc4 {[%emt 0:00:17]} 46. Rc1+ {[%emt 0:01:02]} Kb3 {[%emt 0:00:03]} 47. Kd2 {[%emt 0:00:19]} Kb2 {[%emt 0:01:16]} 48. Rc3 {[%emt 0:00:21]} Rg8 {[%emt 0:00:07]} 49. Rxd3 {[%emt 0:00:32]} Rg2+ {[%emt 0:00:04]} 50. Ke3 {[%emt 0:04:44]} Rxh2 {[%emt 0:00:06]} 51. f4 {[%emt 0:00:53]} Rh5 {[%emt 0:00:28]} 52. Ke4 {[%emt 0:00:49]} Ra5 {[%emt 0:01:06]} 53. f5 {[%emt 0:00:37]} Ra4+ {[%emt 0:00:19]} 54. Ke5 {[%emt 0:00:58]} Ra5+ {[%emt 0:00:22]} 55. Kf6 {[%emt 0:00:24]} h5 {[%emt 0:01:34]} 56. Kg6 {[%emt 0:01:01]} h4 {[%emt 0:00:43]} 57. f6 {[%emt 0:00:24]} 1-0

[Event "Prague Festival Futures 2024"]
[Site "Prague"]
[Date "2024.03.05"]
[Round "7.1"]
[White "Guntaka, Aayansh R"]
[Black "Andre, Tomas"]
[Result "1/2-1/2"]
[ECO "B40"]
[WhiteElo "1651"]
[BlackElo "1829"]
[Annotator "NA RC"]
[PlyCount "88"]
[EventDate "2024.02.22"]
[EventType "tourn"]
[EventCountry "CZE"]
[SourceTitle "playchess.com"]
[Source "ChessBase"]
[SourceQuality "1"]
[TimeControl "40/5400+30:1800+30"]

1. e4 {[%emt 0:00:11]} c5 {[%emt 0:00:39]} 2. Nf3 {[%emt 0:00:11]} e6 {[%emt 0:00:41]} 3. d4 {[%emt 0:00:20]} cxd4 {[%emt 0:00:22]} 4. Nxd4 {[%emt 0:00:06]} Nf6 {[%emt 0:00:36]} 5. Nc3 {[%emt 0:00:36]} Nc6 {[%emt 0:00:41]} 6. Nxc6 {[%emt 0:00:11]} bxc6 {[%emt 0:00:49]} 7. Bd3 {[%emt 0:00:13]} d5 {[%emt 0:00:54]} 8. O-O {[%emt 0:00:23]} Be7 {[%emt 0:01:03]} 9. Qf3 {[%emt 0:04:14]} O-O {[%emt 0:06:43]} 10. e5 {[%emt 0:02:57]} Nd7 {[%emt 0:03:59]} 11. Qh3 {[%emt 0:00:41]} f5 {[%emt 0:01:24]} 12. Re1 {[%emt 0:11:10]} Nc5 {[%emt 0:05:23]} 13. Ne2 {[%emt 0:05:07]} Rb8 {[%emt 0:07:31]} 14. Nf4 {[%emt 0:02:45]} Nxd3 {[%emt 0:19:53]} 15. Qxd3 {[%emt 0:03:25]} Qb6 {[%emt 0:06:48]} 16. Qg3 {[%emt 0:08:34]} Bc5 {[%emt 0:12:00]} 17. h4 {[%emt 0:01:37]} Kh8 {[%emt 0:03:43]} 18. h5 {[%emt 0:01:30]} Re8 {[%emt 0:04:54]} 19. Nh3 {[%emt 0:06:13]} Rb7 {[%emt 0:04:58]} 20. Qh4 {[%emt 0:05:44]} Qb4 {[%emt 0:02:49]} 21. Bf4 {[%emt 0:05:25]} Be7 {[%emt 0:02:40]} 22. Qg3 {[%emt 0:03:32]} Bd8 {[%emt 0:06:20]} 23. b3 {[%emt 0:01:34]} Qf8 {[%emt 0:08:23]} 24. Ng5 {[%emt 0:04:53]} h6 {[%emt 0:00:00]} 25. Nf3 {[%emt 0:01:20]} Qf7 {[%emt 0:00:00]} 26. Qh3 {[%emt 0:05:39]} Rb4 {[%emt 0:00:00]} 27. Be3 {[%emt 0:01:03]} Bb6 {[%emt 0:00:00]} 28. Bxb6 {[%emt 0:00:16]} axb6 {[%emt 0:00:05]} 29. c3 {[%emt 0:01:33]} Re4 {[%emt 0:00:18]} 30. Nd4 {[%emt 0:01:11]} Bd7 {[%emt 0:00:41]} 31. a4 {[%emt 0:01:47]} c5 {[%emt 0:00:55]} 32. Nf3 {[%emt 0:00:43]} Ra8 {[%emt 0:00:30]} 33. Nd2 {[%emt 0:01:29]} Rxe1+ {[%emt 0:00:08]} 34. Rxe1 {[%emt 0:00:04]} Be8 {[%emt 0:00:12]} 35. c4 {[%emt 0:01:28]} d4 {[%emt 0:00:37]} 36. Qf3 {[%emt 0:00:38]} Rd8 {[%emt 0:00:48]} 37. Ra1 {[%emt 0:02:35]} Qxh5 {[%emt 0:00:37]} 38. Qb7 {[%emt 0:00:14]} Qf7 {[%emt 0:00:53]} 39. Qxb6 {[%emt 0:00:24]} Rc8 {[%emt 0:00:28]} 40. a5 {[%emt 0:00:13]} Qd7 {[%emt 0:00:30]} 41. a6 {[%emt 0:30:38]} Qc6 {[%emt 0:30:34]} 42. Qxc6 {[%emt 0:03:11]} Bxc6 {[%emt 0:00:09]} 43. Ra5 {[%emt 0:00:20]} Ba8 {[%emt 0:00:00]} 44. Rb5 {[%emt 0:00:00]} Kh7 {[%emt 0:00:00]} 1/2-1/2

[Event "Prague Festival Futures 2024"]
[Site "Prague"]
[Date "2024.03.05"]
[Round "7.2"]
[White "Markina, Sofiia"]
[Black "Siskou, Evangelia"]
[Result "1-0"]
[ECO "B53"]
[WhiteElo "1680"]
[BlackElo "1680"]
[Annotator "NA RC"]
[PlyCount "85"]
[EventDate "2024.02.22"]
[EventType "tourn"]
[EventCountry "CZE"]
[SourceTitle "playchess.com"]
[Source "ChessBase"]
[SourceQuality "1"]
[TimeControl "40/5400+30:1800+30"]

1. e4 {[%emt 0:00:03]} c5 {[%emt 0:00:32]} 2. Nf3 {[%emt 0:00:31]} d6 {[%emt 0:00:19]} 3. Nc3 {[%emt 0:00:21]} Nf6 {[%emt 0:00:48]} 4. d4 {[%emt 0:00:19]} cxd4 {[%emt 0:00:18]} 5. Qxd4 {[%emt 0:00:18]} Nc6 {[%emt 0:01:16]} 6. Bb5 {[%emt 0:00:20]} Bd7 {[%emt 0:02:06]} 7. Bxc6 {[%emt 0:01:12]} Bxc6 {[%emt 0:01:28]} 8. Bg5 {[%emt 0:00:35]} Nd7 {[%emt 0:11:06]} 9. O-O-O {[%emt 0:06:19]} Qb6 {[%emt 0:06:12]} 10. Qd2 {[%emt 0:09:30]} O-O-O {[%emt 0:04:27]} 11. Nd5 {[%emt 0:10:24]} Bxd5 {[%emt 0:20:18]} 12. Qxd5 {[%emt 0:00:10]} f6 {[%emt 0:08:07]} 13. Be3 {[%emt 0:05:06]} Nc5 {[%emt 0:04:15]} 14. Nd4 {[%emt 0:10:38]} Qa6 {[%emt 0:09:27]} 15. Ne6 {[%emt 0:02:43]} Nxe6 {[%emt 0:00:02]} 16. Qxe6+ {[%emt 0:00:10]} Kb8 {[%emt 0:00:12]} 17. Rd3 {[%emt 0:02:48]} Qc6 {[%emt 0:00:54]} 18. Rhd1 {[%emt 0:03:51]} Qc8 {[%emt 0:08:24]} 19. Qb3 {[%emt 0:01:22]} g6 {[%emt 0:02:19]} 20. Qa4 {[%emt 0:01:20]} b6 {[%emt 0:01:59]} 21. Rb3 {[%emt 0:00:30]} Qd7 {[%emt 0:03:40]} 22. Qa5 {[%emt 0:01:31]} Bh6 {[%emt 0:09:45]} 23. Bxh6 {[%emt 0:00:21]} g5 {[%emt 0:00:01]} 24. Qf5 {[%emt 0:01:43]} Qe8 {[%emt 0:02:19]} 25. f4 {[%emt 0:00:31]} Qg6 {[%emt 0:01:12]} 26. Qxg6 {[%emt 0:01:10]} hxg6 {[%emt 0:00:03]} 27. fxg5 {[%emt 0:00:13]} Rh7 {[%emt 0:00:32]} 28. Rf3 {[%emt 0:01:41]} Re8 {[%emt 0:00:47]} 29. Rh3 {[%emt 0:00:31]} Reh8 {[%emt 0:01:18]} 30. Bg7 {[%emt 0:00:10]} Rxh3 {[%emt 0:00:35]} 31. gxh3 {[%emt 0:00:04]} Rxh3 {[%emt 0:00:21]} 32. gxf6 {[%emt 0:00:05]} exf6 {[%emt 0:00:08]} 33. Bxf6 {[%emt 0:00:13]} Rxh2 {[%emt 0:00:31]} 34. Rxd6 {[%emt 0:00:21]} Re2 {[%emt 0:00:23]} 35. e5 {[%emt 0:00:23]} Kc7 {[%emt 0:01:13]} 36. Bg7 {[%emt 0:01:27]} g5 {[%emt 0:00:33]} 37. Rg6 {[%emt 0:00:15]} Rg2 {[%emt 0:00:29]} 38. e6 {[%emt 0:00:44]} Re2 {[%emt 0:00:16]} 39. Bf8 {[%emt 0:00:58]} Re5 {[%emt 0:00:42]} 40. e7 {[%emt 0:01:36]} b5 {[%emt 0:00:37]} 41. Rxg5 {[%emt 0:30:20]} Re6 {[%emt 0:01:16]} 42. Rxb5 {[%emt 0:00:00]} a6 {[%emt 0:00:34]} 43. Rd5 {[%emt 0:00:00]} 1-0

[Event "Prague Festival Futures 2024"]
[Site "Prague"]
[Date "2024.03.05"]
[Round "7.3"]
[White "Aansh Nandan Nerurkar"]
[Black "Jakubse, Tamae Severina"]
[Result "1/2-1/2"]
[ECO "C58"]
[WhiteElo "1891"]
[BlackElo "1735"]
[Annotator "NA"]
[PlyCount "92"]
[EventDate "2024.02.22"]
[EventType "tourn"]
[EventCountry "CZE"]
[SourceTitle "playchess.com"]
[Source "ChessBase"]
[SourceQuality "1"]
[TimeControl "40/5400+30:1800+30"]

1. e4 {[%emt 0:00:02]} e5 {[%emt 0:00:02]} 2. Nf3 {[%emt 0:00:07]} Nc6 {[%emt 0:00:05]} 3. Bc4 {[%emt 0:00:06]} Nf6 {[%emt 0:00:07]} 4. Ng5 {[%emt 0:00:04]} d5 {[%emt 0:00:07]} 5. exd5 {[%emt 0:00:05]} Na5 {[%emt 0:00:04]} 6. Bb5+ {[%emt 0:00:07]} c6 {[%emt 0:00:05]} 7. dxc6 {[%emt 0:00:05]} bxc6 {[%emt 0:00:05]} 8. Bd3 {[%emt 0:00:07]} Nd5 {[%emt 0:00:08]} 9. Nf3 {[%emt 0:00:09]} Bd6 {[%emt 0:00:06]} 10. O-O {[%emt 0:00:06]} O-O {[%emt 0:00:04]} 11. Re1 {[%emt 0:00:07]} f5 {[%emt 0:00:05]} 12. Nxe5 {[%emt 0:00:08]} Qf6 {[%emt 0:00:06]} 13. Nf3 {[%emt 0:00:05]} g5 {[%emt 0:00:07]} 14. c4 {[%emt 0:00:05]} Nf4 {[%emt 0:00:04]} 15. Bf1 {[%emt 0:00:05]} g4 {[%emt 0:00:05]} 16. d4 {[%emt 0:00:04]} gxf3 {[%emt 0:00:05]} 17. Qxf3 {[%emt 0:00:05]} Ne6 {[%emt 0:00:06]} 18. Qc3 {[%emt 0:00:26]} Nxd4 {[%emt 0:00:08]} 19. c5 {[%emt 0:00:12]} Be5 {[%emt 0:00:07]} 20. Qxa5 {[%emt 0:00:11]} Nc2 {[%emt 0:00:06]} 21. Bg5 {[%emt 0:00:08]} Qxg5 {[%emt 0:00:06]} 22. Rxe5 {[%emt 0:00:06]} Nxa1 {[%emt 0:05:45]} 23. Qc3 {[%emt 0:00:17]} h6 {[%emt 0:00:17]} 24. f4 {[%emt 0:00:31]} Qf6 {[%emt 0:00:35]} 25. Bc4+ {[%emt 0:02:40]} Kh7 {[%emt 0:00:46]} 26. Nd2 {[%emt 0:00:29]} Bd7 {[%emt 0:07:31]} 27. b4 {[%emt 0:00:44]} Rfe8 {[%emt 0:04:32]} 28. Qxa1 {[%emt 0:01:22]} Be6 {[%emt 0:03:39]} 29. Bxe6 {[%emt 0:02:08]} Rxe6 {[%emt 0:00:14]} 30. Nc4 {[%emt 0:00:22]} Rxe5 {[%emt 0:10:42]} 31. Qxe5 {[%emt 0:00:27]} Qxe5 {[%emt 0:00:51]} 32. fxe5 {[%emt 0:02:35]} Kg6 {[%emt 0:08:15]} 33. Nd6 {[%emt 0:00:33]} a5 {[%emt 0:02:09]} 34. b5 {[%emt 0:01:53]} cxb5 {[%emt 0:01:44]} 35. Kf2 {[%emt 0:10:03]} b4 {[%emt 0:08:22]} 36. Ke3 {[%emt 0:00:08]} a4 {[%emt 0:00:54]} 37. Kd4 {[%emt 0:00:10]} b3 {[%emt 0:01:16]} 38. Kc3 {[%emt 0:00:05]} bxa2 {[%emt 0:19:38]} 39. Kb2 {[%emt 0:00:06]} Ra5 {[%emt 0:14:14]} 40. c6 {[%emt 0:00:29]} Ra7 {[%emt 0:02:00]} 41. Nb5 {[%emt 0:30:53]} Ra5 {[%emt 0:35:29]} 42. Nd6 {[%emt 0:00:24]} Ra7 {[%emt 0:00:36]} 43. Nb5 {[%emt 0:08:19]} Ra5 {[%emt 0:00:26]} 44. Nd6 {[%emt 0:00:07]} Ra7 {[%emt 0:00:07]} 45. Nb5 {[%emt 0:00:05]} Ra5 {[%emt 0:00:06]} 46. Nd6 {[%emt 0:00:05]} Ra7 {[%emt 0:00:06]} 1/2-1/2

[Event "Prague Festival Futures 2024"]
[Site "Prague"]
[Date "2024.03.05"]
[Round "7.4"]
[White "Stara, Zuzana"]
[Black "Brzezina, Pawel"]
[Result "1/2-1/2"]
[ECO "C77"]
[WhiteElo "1674"]
[BlackElo "1834"]
[Annotator "NA RC"]
[PlyCount "81"]
[EventDate "2024.02.22"]
[EventType "tourn"]
[EventCountry "CZE"]
[SourceTitle "playchess.com"]
[Source "ChessBase"]
[SourceQuality "1"]
[TimeControl "40/5400+30:1800+30"]

1. e4 {[%emt 0:00:01]} e5 {[%emt 0:00:35]} 2. Nf3 {[%emt 0:00:04]} Nc6 {[%emt 0:00:33]} 3. Bb5 {[%emt 0:00:04]} a6 {[%emt 0:00:59]} 4. Ba4 {[%emt 0:00:04]} Nf6 {[%emt 0:00:29]} 5. d3 {[%emt 0:00:11]} d6 {[%emt 0:01:09]} 6. c3 {[%emt 0:00:04]} g6 {[%emt 0:01:14]} 7. Nbd2 {[%emt 0:01:18]} Bg7 {[%emt 0:00:47]} 8. h3 {[%emt 0:01:28]} h6 {[%emt 0:03:04]} 9. Nf1 {[%emt 0:01:04]} b5 {[%emt 0:04:20]} 10. Bb3 {[%emt 0:00:50]} Na5 {[%emt 0:01:52]} 11. Bc2 {[%emt 0:00:06]} c5 {[%emt 0:01:15]} 12. Ng3 {[%emt 0:05:04]} O-O {[%emt 0:01:35]} 13. O-O {[%emt 0:00:15]} Bb7 {[%emt 0:04:50]} 14. Be3 {[%emt 0:01:31]} Qe7 {[%emt 0:02:58]} 15. Qd2 {[%emt 0:09:14]} Kh7 {[%emt 0:00:44]} 16. Nh2 {[%emt 0:12:11]} d5 {[%emt 0:06:48]} 17. b4 {[%emt 0:06:56]} d4 {[%emt 0:01:04]} 18. bxa5 {[%emt 0:13:51]} dxe3 {[%emt 0:00:18]} 19. fxe3 {[%emt 0:01:47]} Rad8 {[%emt 0:00:41]} 20. Qe2 {[%emt 0:00:34]} Qc7 {[%emt 0:05:34]} 21. a4 {[%emt 0:19:06]} b4 {[%emt 0:06:51]} 22. cxb4 {[%emt 0:02:34]} cxb4 {[%emt 0:00:07]} 23. Rfb1 {[%emt 0:00:43]} Qxa5 {[%emt 0:05:58]} 24. Nf3 {[%emt 0:01:27]} Nd7 {[%emt 0:06:31]} 25. Qd2 {[%emt 0:03:54]} Nc5 {[%emt 0:05:25]} 26. Qxb4 {[%emt 0:01:52]} Qxb4 {[%emt 0:02:53]} 27. Rxb4 {[%emt 0:00:12]} f5 {[%emt 0:09:37]} 28. exf5 {[%emt 0:03:04]} gxf5 {[%emt 0:00:10]} 29. d4 {[%emt 0:05:13]} exd4 {[%emt 0:11:31]} 30. Bxf5+ {[%emt 0:01:47]} Kh8 {[%emt 0:02:32]} 31. Nxd4 {[%emt 0:05:02]} a5 {[%emt 0:00:13]} 32. Rc4 {[%emt 0:00:51]} Nb3 {[%emt 0:00:15]} 33. Rd1 {[%emt 0:02:37]} Nxd4 {[%emt 0:02:22]} 34. exd4 {[%emt 0:00:40]} Ba6 {[%emt 0:00:03]} 35. Rc6 {[%emt 0:00:48]} Bb7 {[%emt 0:01:37]} 36. Rc4 {[%emt 0:01:01]} Ba6 {[%emt 0:00:07]} 37. Rc6 {[%emt 0:00:14]} Bb7 {[%emt 0:00:08]} 38. Rb6 {[%emt 0:01:11]} Rxd4 {[%emt 0:00:40]} 39. Rf1 {[%emt 0:00:20]} Bd5 {[%emt 0:01:42]} 40. Nh5 {[%emt 0:00:32]} Rd2 {[%emt 0:01:55]} 41. Rg6 {[%emt 0:30:29]} 1/2-1/2

[Event "Prague Festival Futures 2024"]
[Site "Prague"]
[Date "2024.03.05"]
[Round "7.5"]
[White "Mrozowski, Nikodem"]
[Black "Peglau, Paul David"]
[Result "1-0"]
[ECO "A01"]
[WhiteElo "1527"]
[BlackElo "1764"]
[Annotator "NA RC"]
[PlyCount "71"]
[EventDate "2024.02.22"]
[EventType "tourn"]
[EventCountry "CZE"]
[SourceTitle "playchess.com"]
[Source "ChessBase"]
[SourceQuality "1"]
[TimeControl "40/5400+30:1800+30"]

1. b3 {[%emt 0:00:55]} d5 {[%emt 0:00:55]} 2. Bb2 {[%emt 0:00:25]} c5 {[%emt 0:00:13]} 3. e3 {[%emt 0:00:22]} Nf6 {[%emt 0:00:21]} 4. h3 {[%emt 0:00:29]} Nc6 {[%emt 0:00:42]} 5. Nf3 {[%emt 0:00:07]} Bf5 {[%emt 0:00:35]} 6. Bb5 {[%emt 0:01:47]} e6 {[%emt 0:00:36]} 7. O-O {[%emt 0:02:38]} Be7 {[%emt 0:01:12]} 8. d4 {[%emt 0:00:26]} O-O {[%emt 0:01:29]} 9. Bxc6 {[%emt 0:01:42]} bxc6 {[%emt 0:00:12]} 10. Ba3 {[%emt 0:00:28]} Qb6 {[%emt 0:09:55]} 11. Nc3 {[%emt 0:02:23]} Nd7 {[%emt 0:13:22]} 12. Na4 {[%emt 0:01:54]} Qa5 {[%emt 0:04:19]} 13. Qe1 {[%emt 0:04:06]} Qxe1 {[%emt 0:19:14]} 14. Nxe1 {[%emt 0:00:46]} Rab8 {[%emt 0:08:09]} 15. dxc5 {[%emt 0:04:28]} Rb5 {[%emt 0:08:20]} 16. Nf3 {[%emt 0:06:52]} e5 {[%emt 0:09:13]} 17. Rac1 {[%emt 0:02:31]} Re8 {[%emt 0:02:53]} 18. b4 {[%emt 0:00:30]} a5 {[%emt 0:01:40]} 19. c3 {[%emt 0:02:42]} axb4 {[%emt 0:01:17]} 20. cxb4 {[%emt 0:00:25]} Ra8 {[%emt 0:00:33]} 21. Nc3 {[%emt 0:00:10]} Rbb8 {[%emt 0:01:08]} 22. b5 {[%emt 0:07:50]} Rxa3 {[%emt 0:06:04]} 23. bxc6 {[%emt 0:00:12]} Nxc5 {[%emt 0:02:30]} 24. Nxd5 {[%emt 0:00:17]} Bd6 {[%emt 0:03:05]} 25. c7 {[%emt 0:02:13]} Rc8 {[%emt 0:01:45]} 26. Nxe5 {[%emt 0:01:05]} Be6 {[%emt 0:01:11]} 27. Nc4 {[%emt 0:00:12]} Nd3 {[%emt 0:02:35]} 28. Nxd6 {[%emt 0:00:42]} Nxc1 {[%emt 0:00:30]} 29. Nxc8 {[%emt 0:05:58]} Ne2+ {[%emt 0:00:23]} 30. Kh2 {[%emt 0:00:09]} Bxc8 {[%emt 0:00:33]} 31. Ne7+ {[%emt 0:00:05]} Kf8 {[%emt 0:00:03]} 32. Nxc8 {[%emt 0:00:08]} Rc3 {[%emt 0:00:39]} 33. Rd1 {[%emt 0:00:39]} g6 {[%emt 0:00:03]} 34. Rd7 {[%emt 0:00:43]} Nc1 {[%emt 0:01:11]} 35. Nb6 {[%emt 0:00:12]} Ke8 {[%emt 0:00:05]} 36. Rd8+ {[%emt 0:00:07]} 1-0

[Event "Prague Festival Futures 2024"]
[Site "Prague"]
[Date "2024.03.06"]
[Round "8.1"]
[White "Andre, Tomas"]
[Black "Mrozowski, Nikodem"]
[Result "1-0"]
[ECO "B07"]
[WhiteElo "1829"]
[BlackElo "1527"]
[Annotator "NA RC"]
[PlyCount "87"]
[EventDate "2024.02.22"]
[EventType "tourn"]
[EventCountry "CZE"]
[SourceTitle "playchess.com"]
[Source "ChessBase"]
[SourceQuality "1"]
[TimeControl "40/5400+30:1800+30"]

1. e4 {[%emt 0:00:10]} g6 {[%emt 0:00:20]} 2. d4 {[%emt 0:00:29]} Bg7 {[%emt 0:00:24]} 3. Nc3 {[%emt 0:00:46]} d6 {[%emt 0:00:38]} 4. Be3 {[%emt 0:00:58]} Nf6 {[%emt 0:00:20]} 5. f3 {[%emt 0:00:25]} Nbd7 {[%emt 0:00:33]} 6. Qd2 {[%emt 0:07:42]} a6 {[%emt 0:01:08]} 7. Bd3 {[%emt 0:11:24]} b5 {[%emt 0:02:48]} 8. a4 {[%emt 0:06:19]} b4 {[%emt 0:02:54]} 9. Nce2 {[%emt 0:00:58]} c5 {[%emt 0:00:57]} 10. c3 {[%emt 0:03:19]} a5 {[%emt 0:05:51]} 11. Bb5 {[%emt 0:09:12]} Ba6 {[%emt 0:03:39]} 12. e5 {[%emt 0:12:16]} cxd4 {[%emt 0:06:21]} 13. exf6 {[%emt 0:02:05]} dxe3 {[%emt 0:00:08]} 14. Qd3 {[%emt 0:00:18]} Bxf6 {[%emt 0:05:16]} 15. Bxa6 {[%emt 0:00:24]} bxc3 {[%emt 0:01:01]} 16. bxc3 {[%emt 0:00:40]} O-O {[%emt 0:04:15]} 17. Bb5 {[%emt 0:02:32]} Nb6 {[%emt 0:05:07]} 18. Nh3 {[%emt 0:01:28]} Rc8 {[%emt 0:00:55]} 19. O-O {[%emt 0:01:26]} Qc7 {[%emt 0:00:02]} 20. Nhf4 {[%emt 0:05:45]} Qc5 {[%emt 0:00:01]} 21. Rfd1 {[%emt 0:06:07]} Rfd8 {[%emt 0:08:26]} 22. Rac1 {[%emt 0:04:01]} e6 {[%emt 0:00:24]} 23. g3 {[%emt 0:01:27]} Bg5 {[%emt 0:08:08]} 24. Ng2 {[%emt 0:06:57]} e5 {[%emt 0:02:07]} 25. c4 {[%emt 0:03:18]} Rc7 {[%emt 0:02:36]} 26. f4 {[%emt 0:02:24]} exf4 {[%emt 0:00:22]} 27. gxf4 {[%emt 0:00:19]} Bf6 {[%emt 0:01:23]} 28. Qxe3 {[%emt 0:00:34]} Qxe3+ {[%emt 0:03:07]} 29. Nxe3 {[%emt 0:00:13]} Re7 {[%emt 0:00:01]} 30. Ng4 {[%emt 0:02:35]} Rxe2 {[%emt 0:00:24]} 31. Nxf6+ {[%emt 0:00:10]} Kg7 {[%emt 0:00:02]} 32. Nd5 {[%emt 0:00:23]} Nxd5 {[%emt 0:00:21]} 33. Rxd5 {[%emt 0:00:05]} Kf6 {[%emt 0:01:16]} 34. c5 {[%emt 0:00:58]} Ke6 {[%emt 0:00:18]} 35. Bxe2 {[%emt 0:00:51]} Kxd5 {[%emt 0:00:04]} 36. c6 {[%emt 0:00:14]} Rc8 {[%emt 0:02:00]} 37. c7 {[%emt 0:00:14]} Ke6 {[%emt 0:00:15]} 38. Ba6 {[%emt 0:00:19]} Kd7 {[%emt 0:00:01]} 39. Bxc8+ {[%emt 0:00:21]} Kxc8 {[%emt 0:00:01]} 40. Kg2 {[%emt 0:00:21]} f5 {[%emt 0:00:05]} 41. h4 {[%emt 0:30:16]} h5 {[%emt 0:30:04]} 42. Kf3 {[%emt 0:00:11]} d5 {[%emt 0:00:01]} 43. Ke3 {[%emt 0:00:13]} d4+ {[%emt 0:00:04]} 44. Kd3 {[%emt 0:00:14]} 1-0